Cogmind - Beta 13 @@@ ROGUE MODE // 2024.04.06 @ 01:32:44 Player: SnowyImp Result: Destroyed self with Mini Grenade Launcher Performance ------------- Evolutions (0) 0 Regions Visited (2) 400 Robots Destroyed (5) 25 Value Destroyed (121) 121 Prototype IDs (0) 0 Alien Tech Used (0) 0 Bonus (0) 0 TOTAL SCORE: 546 Bonus ------- None Cogmind --------- Core Integrity 0/250 Matter 224/300 Energy 100/100 System Corruption 0% Temperature Cool (0) Movement Rolling (80) Location -10/Mines Parts ------- > --- POWER (1) -------- (None) > --- PROPULSION (2) --- Wheel Wheel > --- UTILITY (2) ------ Heat Sink Structural Scanner > --- WEAPON (2) ------- Particle Gun Mini Grenade Launcher > --- INVENTORY (5) ---- Wheel Weight Redist. System Seismic Detector Shield Generator Mining Laser Peak State ------------ > --- POWER ------------ Ion Engine > --- PROPULSION ------- Aluminum Leg Aluminum Leg > --- UTILITY ---------- Small Storage Unit Structural Scanner > --- WEAPON ----------- Particle Gun Particle Gun > --- INVENTORY -------- Light Ion Engine Wheel Weight Redist. System Particle Gun Particle Gun Assault Rifle Mining Laser [Rating: 10] Favorites ----------- Power Ion Engine Engine Ion Engine Propulsion Aluminum Leg Leg Aluminum Leg Wheel Wheel Utility Structural Scanner Device Structural Scanner Storage Small Storage Unit Weapon Particle Gun Energy Gun Particle Gun Launcher Mini Grenade Launcher Build | -11 -10 -10 ------- Run | Yrd Mat Min Slots Evolved . | . . . Power . | . . . Propulsion . | . . . Utility . | . . . Weapon . | . . . Parts Attached 19 | 6 5 8 Power 2 | 1 . 1 Engine 2 | 1 . 1 Core . | . . . Reactor . | . . . Propulsion 6 | 2 1 3 Treads . | . . . Leg 3 | 2 1 . Wheel 3 | . . 3 Hover . | . . . Flight . | . . . Utility 4 | 1 2 1 Device 2 | . 1 1 Storage 2 | 1 1 . Processor . | . . . Hackware . | . . . Protection . | . . . Artifact . | . . . Weapon 7 | 2 2 3 Energy Gun 6 | 2 2 2 Energy Cannon . | . . . Ballistic Gun . | . . . Ballistic Cannon . | . . . Launcher 1 | . . 1 Special Weapon . | . . . Impact Weapon . | . . . Slashing Weapon . | . . . Piercing Weapon . | . . . Special Melee Weapon . | . . . Unidentified Prototypes . | . . . Parts Lost 3 | . . 3 Power 1 | . . 1 Propulsion 1 | . . 1 Utility . | . . . Weapon 1 | . . 1 Highest Loss Streak 1 | . . 1 To Critical Strikes . | . . . Average Slot Usage (%) 99 | . 99 99 Engine 14 | . 14 14 Leg 24 | . 28 19 Wheel 3 | . . 8 Device 18 | . 13 25 Storage 8 | . 14 2 Energy Gun 27 | . 28 27 Naked Turns . | . . . Heaviest Build 22 | 13 22 22 Greatest Support 20 | 20 20 20 Greatest Overweight (x) 1 | . 1 1 Average Overweight (x) . | . . . Largest Inventory Capacity 10 | 8 10 10 Average Capacity 7 | 6 8 5 Most Carried 8 | 3 8 8 Average Carried 6 | 1 7 5 Final Capacity 10 | 8 10 5 Final Carried 8 | 3 8 5 Class Distribution -------------------- 96% | Mutant 3% | Scavenger-Mutant Dominant Class ---------------- Mutant | -10/Materials Mutant | -10/Mines Resources | -11 -10 -10 ----------- Run | Yrd Mat Min Matter Collected 346 | 196 31 119 Remotely . | . . . Salvage Created 196 | . 71 125 Parts 11 | . 3 8 Haulers Intercepted . | . . . Recyclers Shooed . | . . . Parts Field Recycled . | . . . Retrieved Matter . | . . . Parts Self-Destructed . | . . . Prevented . | . . . Kills | -11 -10 -10 ------- Run | Yrd Mat Min Combat Hostiles Destroyed 10 | . 2 8 Guns 6 | . 2 4 AOE 4 | . . 4 Classes Destroyed 5 | . 1 4 Worker 1 | . . 1 Tunneler 1 | . . 1 Grunt 2 | . 2 . Sentry 1 | . . 1 Assembled 7 | . . 7 Best Kill Streak 6 | . 1 6 Combat Bots Only 4 | . 1 4 Max Kills in Single Turn 4 | . 1 4 Gunslinging . | . . . Exploded 2 | . . 2 Melee . | . . . Uniques/NPCs Destroyed . | . . . Combat | -11 -10 -10 -------- Run | Yrd Mat Min Hostile Shots Fired 77 | . 20 57 Missed 22 | . 8 14 Damage Taken 801 | . 147 654 Core 270 | . 26 244 Absorbed by Shields . | . . . Core Remaining (%) 100 | 100 . . Volleys Fired 29 | . 6 23 Largest 2 | . 2 2 Hottest 130 | . 130 130 Shots Fired 58 | . 12 46 Gun 53 | . 12 41 Cannon . | . . . Launcher 5 | . . 5 Special . | . . . Kinetic . | . . . Thermal 53 | . 12 41 Explosive 5 | . . 5 Electromagnetic . | . . . Robot Hit Streak 8 | . 8 4 Robot Miss Streak 6 | . 1 6 Penetration Max . | . . . Secondary Targets . | . . . Shots Hit Robots 28 | . 10 18 Core Hits 21 | . 2 19 Critical Kills . | . . . Critical Parts Destroyed . | . . . Critical Strikes . | . . . Melee Attacks . | . . . Impact . | . . . Slashing . | . . . Piercing . | . . . Sneak Attacks . | . . . Combat Hostiles . | . . . Follow-up Attacks . | . . . Damage Inflicted 702 | . 159 543 Guns 434 | . 155 279 Cannons . | . . . Explosions 264 | . . 264 Melee . | . . . Ramming 4 | . 4 . Kinetic . | . . . Thermal 434 | . 155 279 Explosive 264 | . . 264 Electromagnetic . | . . . Impact . | . . . Slashing . | . . . Piercing . | . . . Highest Corruption . | . . . Average Corruption . | . . . Corruption Purged . | . . . Corruption Blocked . | . . . Overload Shots . | . . . Overflow Damage 7 | . . 7 Projectiles . | . . . Explosions 7 | . . 7 Melee . | . . . Knockbacks . | . . . Impact . | . . . Kinetic . | . . . Secondary . | . . . Self-Inflicted Damage 85 | . . 85 Shots 2 | . . 2 Rammed . | . . . Targets Rammed 1 | . 1 . Kicked 1 | . 1 . Crushed . | . . . Highest Temperature 369 | . 369 286 Average Temperature 117 | . 164 98 Received Heat Transfer 232 | . 78 154 Siege Activations . | . . . Robots Corrupted . | . . . Combat Hostiles . | . . . Parts Fried . | . . . Impact Corruptions . | . . . Robots Melted . | . . . Combat Hostiles . | . . . Parts Melted . | . . . Heat Transferred 1036 | . 370 666 Parts Sabotaged . | . . . Parts Stolen . | . . . Parts Stripped . | . . . Power Chain Reactions . | . . . Alert | -11 -10 -10 ------- Run | Yrd Mat Min Peak Influence 80 | . 80 69 Initial 7 | . . 7 Average 35 | . 30 45 Maximum Alert Level . | . . . Low Security (%) 100 | 100 100 100 Level 1 . | . . . Level 2 . | . . . Level 3 . | . . . Level 4 . | . . . Level 5 . | . . . High Security . | . . . Max Security . | . . . Squads Dispatched . | . . . Investigation . | . . . Extermination . | . . . Reinforcement . | . . . Assault . | . . . Garrison . | . . . Intercept . | . . . Searches Triggered . | . . . Construction Impeded . | . . . Haulers Reinforced . | . . . Active Scanning Responses . | . . . Cargo Convoy Interrupts . | . . . Stealth | -11 -10 -10 --------- Run | Yrd Mat Min Distress Signals . | . . . Communications Jammed . | . . . Distress Signals . | . . . Times Spotted 24 | . 10 14 Peak Tracking Total 5 | . 3 5 Tactical Retreats 1 | . . 1 Traps | -11 -10 -10 ------- Run | Yrd Mat Min Traps Triggered . | . . . Indirectly . | . . . Trap Hack Attempts . | . . . Triggered . | . . . Disarmed . | . . . Reprogrammed . | . . . Reused . | . . . Traps Extracted . | . . . Installed . | . . . Triggered . | . . . Machines | -11 -10 -10 ---------- Run | Yrd Mat Min Machines Disabled 1 | . . 1 Max in Single Turn 1 | . . 1 Machines Repaired . | . . . Machines Dismantled . | . . . Machines Sabotaged . | . . . Overloaded Fab Kills . | . . . Hacking | -11 -10 -10 --------- Run | Yrd Mat Min Machines Accessed 5 | . 5 . Terminals 5 | . 5 . Fabricators . | . . . Repair Stations . | . . . Recycling Units . | . . . Scanalyzers . | . . . Garrison Access . | . . . Total Hacks 12 | . 12 . Successful 1 | . 1 . Failed 11 | . 11 . Catastrophic 2 | . 2 . Database Lockouts . | . . . Manual 13 | . 13 . Terminals 12 | . 12 . Fabricators . | . . . Repair Stations . | . . . Recycling Units . | . . . Scanalyzers . | . . . Garrison Access . | . . . Terminal Hacks 1 | . 1 . Branch Access Points 1 | . 1 . Fabricator Hacks . | . . . Repair Station Hacks . | . . . Recycling Unit Hacks . | . . . Scanalyzer . | . . . Garrison Access Hacks . | . . . Unauthorized Hacks . | . . . Terminals . | . . . Fabricators . | . . . Repair Stations . | . . . Recycling Units . | . . . Scanalyzers . | . . . Garrison Access . | . . . Data Cores Recovered . | . . . Used . | . . . Hacking Detections 4 | . 4 . Full Trace Events . | . . . Feedback Events . | . . . Feedback Blocked . | . . . Robot Schematics Acquired . | . . . Robots Built . | . . . Authchips . | . . . Time . | . . . Total Robot Build Rating . | . . . Part Schematics Acquired . | . . . Parts Built . | . . . Authchips . | . . . Time . | . . . Total Part Build Rating . | . . . Parts Repaired . | . . . Time . | . . . Parts Recycled . | . . . Recycled Matter . | . . . Retrieved Matter . | . . . Retrieved Components . | . . . Parts Scanalyzed . | . . . Part Schematics Acquired . | . . . Parts Damaged . | . . . Bothacking | -11 -10 -10 ------------ Run | Yrd Mat Min Used RIF Installer . | . . . Robots Hacked . | . . . Non-combat . | . . . Combat . | . . . Robot Hacks Applied . | . . . Relay Couplers Released . | . . . Fabnet Peak Effective % . | . . . Robots Rewired . | . . . Allies Hacked . | . . . Hacks Repelled . | . . . Allies | -11 -10 -10 -------- Run | Yrd Mat Min Total Allies . | . . . Largest Group . | . . . Highest-Rated Group . | . . . Highest-Rated Ally . | . . . Total Orders . | . . . Ally Attacks . | . . . Total Damage . | . . . Kills . | . . . Allies Corrupted . | . . . Allies Melted . | . . . Intel | -11 -10 -10 ------- Run | Yrd Mat Min Robot Analysis Total . | . . . Derelict Logs Recovered 1 | . . 1 Drone Launches . | . . . Drone Recoveries . | . . . Exploration | -11 -10 -10 ------------- Run | Yrd Mat Min Turns Passed 1021 | 49 555 417 Spaces Moved 723 | 34 393 296 Core 4 | 4 . . Treads . | . . . Legs 606 | 30 393 183 Wheels 113 | . . 113 Hover . | . . . Flight . | . . . Fastest Speed 50 | 50 120 80 Average Speed 119 | 111 126 111 Slowest Speed 190 | 120 190 190 Overloaded Moves . | . . . Propulsion Burnouts . | . . . Robots Hopped . | . . . Cave-ins Triggered . | . . . Exploration Rate (%) 43 | 4 64 63 Regions Visited 2 Branch Regions 1 Pre-discovered Areas . | . . . Known Exits Taken 1 | . 1 . Unknown Exits Taken 1 | 1 . . Scrap Searched . | . . . Spaces Dug . | . . . Terrain Destroyed 44 | . . 44 Melee . | . . . Projectile . | . . . AOE 44 | . . 44 Terrain Rammed . | . . . Walls Destroyed . | . . . Machines Disabled . | . . . Actions | -11 -10 -10 --------- Run | Yrd Mat Min Total 821 | 42 441 338 Wait 28 | . 22 6 Move 721 | 33 392 296 Hop . | . . . Pick Up 11 | 3 8 . Fast Attach 10 | 6 1 3 Attach 1 | . . 1 Detach . | . . . Swap 8 | . 4 4 Drop 12 | . 7 5 Fire 29 | . 6 23 Melee . | . . . Ram . | . . . Kick 1 | . 1 . Crush . | . . . Escape Stasis . | . . . Rewire . | . . . Trap . | . . . Miscellaneous . | . . . Route ------- -11/Scrapyard -10/Materials (discovered 2 exits: [*Mat] / *Min) -10/Mines History --------- Turn | Location | Event 5 | -11/Scrapyard | Discovered new exit (range 15) 50 | -11/Scrapyard | Entered Materials 301 | -10/Materials | Identified exit to Mines 302 | -10/Materials | Build established: Mutant 368 | -10/Materials | Discovered new exit (range 10) 605 | -10/Materials | Entered Mines 651 | -10/Mines | Joined a pair of Derelicts in attacking an 0b10 outpost 701 | -10/Mines | Found a hidden stash of uninstalled traps 749 | -10/Mines | Assembled infested the area 903 | -10/Mines | Core integrity fell below 50% 942 | -10/Mines | Learned Materials stockpile data 998 | -10/Mines | Core integrity fell below 20% 1022 | -10/Mines | Destroyed self with Mini Grenade Launcher Last Messages --------------- 00986_ U-05 Engineer builds a Wall. 00989_ U-05 Engineer destroyed. 00990_ Particle Gun destroyed. 00993_ Acquired 9 matter. 00996_ Acquired Mni. Grenade Launcher. 00997_ as-00687 destroyed. 01000_ as-63475 destroyed. 01000_ K-01 Serf destroyed. 01000_ T-07 Excavator destroyed. 01000_ as-48258 destroyed. 01004_ K-01 Serf collects debris. 01006_ as-49360 destroyed. 01008_ K-01 Serf collects debris. 01012_ Extracted 33 matter. 01012_ Acquired 18 matter. 01014_ Acquired 19 matter. 01020_ Acquired 24 matter. 01021_ K-01 Serf destroyed. 01022_ Ion Engine destroyed. 01022_ Destroyed Ion Engine. Map ----- +----------------------------------------------------+ | ########################### ######???????## | | ############??????######### ######????????###### | | "####???????????????????## ####??????????###[*# | | =####??????????????????## #####?????????##""!% | | !%|####?????????????????## ###?????????##[] = | | =! ###??????######????### ###????????##!![! | | ##??????######???#### ###????????##""!= | | ### =%##??????## ##??#### #############"%# | | #####! ##??????## ##?#### ################ | | ##### =##??????## ###### | | ##?## ########## ##### $ | | ##?## ########## #### ################# | | ##### =% #### ##### ## ################ | | ########### ### ##### #### ##?????????????# | | ########## ### #### ##### ###?????????????? | | ###?### ## ## #########?????????????? | | ###### ##?#####??????????????? | | ## ##### ###????????????????????? | | ### #####????????????????????? | | #### ###### ## #####????????????????###### | | #### ####### =#### ######????????????###?###### | | #### ##?### %%#########!* ???????????## | | #### #### %!* ########a###???????????## ?###### | | #### ### * ###?## = ##???????????????###### | | #### % ######% ##????????????????##### | | ??## * ##### @ ##????????????????#### | | ??## ### %!# # !=!##?????????????????## | | ??### ## = # #######?????????? | | ??#### ## = =!#|#######????????"" ## #### "" | | ???#### ### % * =##??????????????? ## ##### "" | | ????######## = !*%=###?????????????????????### "" | | ??????###### ! #####??????????????????????## | | ??????????### ! ####?????????????????????? | | ????????## % # ???????????????????????? ### | | ????????## = ???????????????????????? ##### | | ????????## %% ?????????????????????????#### | | ????????## == ???????????????????????????? | | ????????## % ! ? =??????????????????????????? | | ????????### % %= ?![%##????????????????????????? | | ????????#### %=% %=##????????????????????????? | | ?????????#######=*#####| ????????????????????????? | | ?????????? %=##### ????????????????????????? | | ??????????????##%!##???? ???????????????????????? | | ??????????????## ##?????????????????????????????? | | ???????????????? ##?????????????????????????????? | | ???????????????? ???????????????????????????????? | | ?????????????????????????????????????????????????? | | ?????????????????????????????????????????????????? | | ?????????????????????????????????????????????????? | | ?????????????????????????????????????????????????? | +----------------------------------------------------+ Best States ------------- Heat Dissipation 35 Energy Generation 10 Energy Capacity 250 Matter Stores 240 Matter Capacity 300 Sight Range 16 Terrain Scan Density 10 Evasion (%) 55 Item Schematics ----------------- None Robot Schematics ------------------ None Fabricated ------------ Nothing Alien Tech Used ----------------- None Achievements -------------- None Challenges ------------ None Game ------ Seed SensorWeaponsBarrier Manual? 0 Play Time 00:11:40 Cumulative 16.5 hours Start 2024.04.06 @ 01:21:55 End 2024.04.06 @ 01:32:44 Sessions 1 Manual Loads 0 Difficulty Rogue Special Mode None Game No. 23 Rogue 23 Adventurer 0 Explorer 0 Win Type - Total 0 Types 0/0/0/0/0/0/0/0/0 Lore% 9 Gallery% 23 Achievement% 20 Wizard Run 0 Options --------- Layout 1 ASCII 0 Keyboard 0 Movement Numpad Keybinds 0 Fullscreen 1 Font 24/Crisp Map View 50x35 Zoom Use 0% Tactical HUD 1 Map Filters NONE Filters NONE Steam 1 RUN: 763c1ada-8835-4bad-a703-955a882afbb7